bitfinex/quotes_SOLUSD_20240601
["timestamp","ask_amount","ask_price","bid_price","bid_amount"]
[1717280237503,2.2147,167.07,167.04,6.17]
[1717280238409,2.2147,167.07,166.99,6.0105]
[1717280238410,2.2147,167.06,167.03,6.17]
[1717280238613,2.2147,167.06,167.02,6.17]
[1717280238796,2.2152,167.03,166.98,8.98950414]
[1717280239000,2.2152,167.03,166.99,6.17]
[1717280239204,4.4301,167.04,166.99,6.17]
[1717280239504,2.2153,167.02,166.99,6.17]
[1717280239714,2.2152,167.03,166.99,6.17]
[1717280239909,4.4301,167.04,166.99,6.17]
[1717280240090,2.2153,167.02,166.99,6.17]
[1717280240285,2.2153,167.02,166.96,8.98950414]
[1717280240505,2.2153,167.02,166.99,6.17]
[1717280241818,2.2152,167.03,166.99,6.17]
[1717280243120,2.2153,167.02,166.99,6.17]
[1717280244012,2.2152,167.03,166.99,6.17]
[1717280244424,2.2153,167.02,166.99,6.17]
[1717280249605,2.2154,167.01,166.95,6.2308]
[1717280249805,2.2154,167.01,166.98,6.17]
[1717280250196,2.2153,167.02,166.98,6.17]
[1717280253316,2.2153,167.02,166.96,0.17]
[1717280253509,2.2153,167.02,166.98,6.17]
[1717280256822,2.2158,166.99,166.96,0.17]
[1717280257008,2.2156,167.0,166.96,6.17]
[1717280258309,19.4622,167.02,166.96,6.17]
[1717280258528,2.2153,167.03,167.0,6.17]
[1717280260315,26.4966,167.05,167.0,6.17]
[1717280261129,2.2152,167.03,167.01,6.17]
[1717280262614,2.2152,167.03,166.97,0.34]
[1717280263028,2.2153,167.02,166.97,0.34]
[1717280277450,11.0751,167.04,166.97,0.34]
[1717280277651,2.2153,167.02,167.0,6.17]
[1717280284958,2.2154,167.01,167.0,6.17]
[1717280286377,2.2155,167.0,166.98,8.99148224]
[1717280286665,2.2158,166.98,166.97,8.99148224]
[1717280288064,2.2158,166.98,166.96,8.99148224]
[1717280290334,2.2158,166.98,166.95,6.17]
[1717280290534,2.2158,166.98,166.96,8.99313712]
[1717280291334,2.2158,166.98,166.96,8.9931005]
[1717280291645,2.2159,166.97,166.96,8.9931005]
[1717280292755,2.2159,166.97,166.94,6.17]
[1717280292959,2.2159,166.97,166.96,8.99311344]
[1717280296251,2.2158,166.98,166.96,15.16311344]
[1717280298059,2.2158,166.98,166.96,8.99311344]
[1717280298361,2.2159,166.98,166.96,8.99311344]
[1717280299261,2.2156,167.0,166.96,15.16311344]
[1717280299452,4.4307,167.02,166.99,6.17]
[1717280299957,2.2155,167.01,166.99,6.17]
[1717280300153,4.4307,167.02,166.97,8.99311344]
[1717280300154,2.2155,167.0,166.98,6.17]
[1717280302963,2.2155,167.01,166.99,6.17]
[1717280303259,8.8602,167.04,167.0,6.17]
[1717280303260,2.2153,167.02,167.0,6.17]
[1717280305977,8.8602,167.04,166.97,8.99311344]
[1717280306265,21.4223,167.08,166.98,0.17]
[1717280306468,2.2153,167.02,166.98,0.17]
[1717280308269,2.2154,167.01,166.98,0.17]
[1717280308749,2.2155,167.0,166.97,8.99311344]
[1717280308953,2.2155,167.0,166.99,6.17]
[1717280310068,2.2155,167.01,166.99,6.17]
[1717280313655,2.2155,167.01,166.97,8.99311344]
[1717280313859,2.2155,167.01,166.99,6.17]
[1717280319354,2.2155,167.01,166.98,6.17]
[1717280322574,2.2155,167.01,166.97,8.99193664]
[1717280322781,2.2155,167.01,166.97,15.16193664]
[1717280323074,2.2155,167.01,166.98,6.17]
[1717280324675,2.2155,167.01,166.97,8.99193664]
[1717280325059,2.2155,167.01,166.98,6.17]
[1717280328192,2.2155,167.01,166.99,6.17]
[1717280328490,2.2155,167.01,166.97,8.99193664]
[1717280328779,2.2155,167.01,166.99,6.17]
[1717280328980,13.2896,167.05,167.0,6.17]
[1717280329278,2.2152,167.03,167.01,6.17]
[1717280332170,2.2153,167.02,167.01,6.17]
[1717280332472,2.2152,167.03,167.01,6.17]
[1717280334069,2.2153,167.02,167.01,6.17]
[1717280335790,2.2152,167.03,167.01,6.17]
[1717280336596,2.2153,167.02,167.01,6.17]
[1717280337494,11.0747,167.05,167.01,6.17]
[1717280338594,2.2153,167.02,167.01,6.17]
[1717280340394,2.2146,167.07,167.02,6.0925]
[1717280340580,2.2145,167.08,167.06,6.17]
[1717280340778,2.2144,167.09,167.07,6.17]
[1717280341188,2.2144,167.09,167.08,6.17]
[1717280341669,2.2144,167.09,167.04,6.17]
[1717280341873,2.2145,167.08,167.05,0.17]
[1717280347294,2.2142,167.1,167.05,0.17]
[1717280347499,6.6411,167.15,167.06,6.0925]
[1717280347705,2.2139,167.12,167.11,6.17]
[1717280348004,2.2139,167.12,167.1,6.17]
[1717280350400,6.308,167.16,167.05,6.0925]
[1717280350609,2.2143,167.1,167.07,6.17]
[1717280350897,2.2143,167.1,167.08,6.17]
[1717280351202,13.2843,167.12,167.08,6.17]
[1717280351203,2.2141,167.11,167.08,6.17]
[1717280351394,2.2142,167.1,167.08,6.17]
[1717280353700,2.2141,167.11,167.06,0.17]
[1717280353924,2.2142,167.1,167.06,0.17]
[1717280354410,2.2142,167.1,167.08,6.17]
[1717280354594,2.2141,167.11,167.08,6.17]
[1717280356012,2.2142,167.1,167.09,6.17]
[1717280356186,2.2141,167.11,167.09,6.17]
[1717280357821,2.2142,167.1,167.06,6.3879]
[1717280358806,2.2142,167.1,167.09,6.17]
[1717280359186,2.2141,167.11,167.09,6.17]
[1717280360199,2.2141,167.11,167.06,6.3879]
[1717280360728,2.2141,167.11,167.07,6.2179]
[1717280361023,2.214,167.12,167.07,6.2179]
[1717280361728,2.2141,167.11,167.07,6.2179]
[1717280364733,2.2142,167.1,167.07,6.2179]
[1717280366324,2.2141,167.11,167.07,6.2179]
[1717280368027,2.2142,167.1,167.06,0.17]
[1717280368227,2.2142,167.1,167.05,6.3879]
[1717280371027,2.2141,167.11,167.05,6.3879]
[1717280375533,2.2141,167.11,167.08,6.17]
[1717280376439,2.2141,167.11,167.05,6.3879]
[1717280376830,2.2141,167.11,167.08,6.17]
[1717280377127,2.2142,167.1,167.08,6.17]
[1717280378839,2.2141,167.11,167.08,6.17]
[1717280379910,6.17,167.14,167.03,0.193039]
[1717280380107,2.2145,167.08,167.04,6.17]
[1717280381015,2.2144,167.09,167.04,6.17]
[1717280381230,2.2145,167.08,167.05,6.17]
[1717280382735,4.4287,167.09,167.05,6.17]
[1717280383226,4.4287,167.09,167.03,0.193039]
[1717280383539,2.2145,167.08,167.05,6.17]
[1717280389142,2.2145,167.08,167.03,0.193039]
[1717280389318,2.2144,167.09,167.07,6.17]
[1717280389644,2.2144,167.09,167.08,6.17]
[1717280389940,8.8558,167.13,167.08,6.17]
[1717280390144,8.8558,167.13,167.06,0.17]
[1717280390145,8.8544,167.15,167.11,6.17]
[1717280390341,2.2139,167.13,167.11,6.17]
[1717280390637,2.2139,167.12,167.11,6.17]
[1717280392731,2.2139,167.12,167.06,0.17]
[1717280392948,2.2141,167.11,167.1,6.17]
[1717280393138,2.214,167.12,167.1,6.17]
[1717280398138,2.2141,167.11,167.06,0.17]
[1717280398525,2.2141,167.11,167.09,6.17]
[1717280406230,2.214,167.12,167.09,6.17]
[1717280406428,2.2139,167.13,167.11,6.17]
[1717280406848,2.2139,167.13,167.12,6.17]
[1717280407423,2.2139,167.13,167.06,0.17]
[1717280407720,2.2139,167.13,167.12,6.17]
[1717280408145,4.427,167.16,167.12,6.17]
[1717280408351,4.427,167.16,167.13,6.17]
[1717280408554,2.2137,167.14,167.13,6.17]
[1717280411756,2.2137,167.14,167.12,6.17]
[1717280413356,2.2137,167.14,167.06,129.3541]
[1717280413650,2.2137,167.14,167.12,6.17]
[1717280418636,2.2137,167.14,167.06,69.3541]
[1717280419145,2.2137,167.14,167.11,6.17]
[1717280419962,6.17,167.16,167.06,15.4441]
[1717280420159,2.214,167.12,167.09,6.17]
[1717280420862,4.4274,167.14,167.09,6.17]
[1717280421062,2.214,167.12,167.09,6.17]
[1717280421261,2.214,167.12,167.08,6.17]
[1717280422866,2.2139,167.13,167.1,6.17]
[1717280425161,2.2137,167.14,167.1,6.17]
[1717280425865,11.0672,167.16,167.11,6.17]
[1717280426075,2.2138,167.13,167.09,6.17]
[1717280426443,2.2138,167.13,167.1,6.17]
[1717280427652,2.2138,167.13,167.07,0.17]
[1717280427845,2.2138,167.13,167.1,6.17]
[1717280430359,4.4271,167.15,167.12,6.17]
[1717280430360,2.2136,167.15,167.12,6.17]
[1717280430551,2.2136,167.15,167.13,6.17]
[1717280430952,2.2137,167.14,167.09,0.17]
[1717280431145,2.2137,167.14,167.13,6.17]
[1717280434566,4.4265,167.18,167.13,6.17]
[1717280434759,2.2132,167.18,167.16,6.17]
[1717280436476,2.2133,167.17,167.16,6.17]
[1717280436857,2.2133,167.17,167.12,31.1831]
[1717280439851,2.2132,167.18,167.12,31.1831]
[1717280440065,2.2133,167.17,167.12,31.1831]
[1717280440370,4.4261,167.19,167.12,60.95]
[1717280440557,2.2132,167.18,167.12,60.95]
[1717280441764,2.2131,167.19,167.17,6.17]
[1717280442073,2.2131,167.19,167.18,6.17]
[1717280445461,2.2131,167.19,167.12,138.93]
[1717280445783,2.2131,167.19,167.18,6.17]
[1717280447981,2.2128,167.21,167.12,138.93]
[1717280448173,2.2128,167.21,167.2,6.17]
[1717280449666,2.2129,167.2,167.19,6.17]
[1717280451175,2.2128,167.21,167.19,6.17]
[1717280453296,4.4253,167.22,167.13,35.93]
[1717280453297,2.2129,167.2,167.13,35.93]
[1717280453586,2.2131,167.18,167.11,6.1631]
[1717280453788,2.2131,167.18,167.15,6.17]
[1717280453993,2.2131,167.18,167.16,6.17]
[1717280454289,2.2131,167.19,167.16,6.17]
[1717280454868,2.2131,167.19,167.17,6.17]
[1717280460592,2.2131,167.19,167.16,6.17]
[1717280461297,19.9153,167.21,167.16,6.17]
[1717280461587,2.2131,167.18,167.12,24.68]
[1717280461891,2.2131,167.18,167.13,0.17]
[1717280464970,4.4258,167.2,167.13,0.17]
[1717280465188,2.2131,167.18,167.13,0.17]
[1717280465673,2.2135,167.16,167.13,0.17]
[1717280465875,2.2133,167.17,167.13,6.17]
[1717280466177,2.2132,167.18,167.14,6.17]
[1717280466377,2.2132,167.18,167.12,0.17]
[1717280466690,2.2133,167.17,167.14,6.17]
[1717280468777,2.2132,167.18,167.14,6.17]
[1717280469086,2.2132,167.18,167.15,6.17]
[1717280469790,2.2133,167.17,167.15,6.17]
[1717280474909,2.2133,167.17,167.14,6.17]
[1717280475991,6.3725,167.23,167.16,6.17]
[1717280476303,2.2132,167.18,167.12,24.85]
[1717280476608,2.2133,167.17,167.15,6.17]
[1717280478003,2.2133,167.17,167.12,0.17]
[1717280478207,2.2133,167.17,167.15,6.17]
[1717280479607,2.2133,167.17,167.12,0.34]
[1717280479795,2.2133,167.17,167.15,6.17]
[1717280480501,2.2132,167.18,167.15,6.17]
[1717280480704,2.2132,167.18,167.16,6.17]
[1717280480897,2.2131,167.18,167.16,6.17]
[1717280483011,2.2131,167.18,167.17,6.17]
[1717280483211,2.213,167.19,167.12,0.34]
[1717280483418,2.213,167.19,167.17,6.17]
[1717280483613,2.213,167.19,167.12,48.135]
[1717280483930,2.213,167.19,167.18,6.17]
[1717280485217,2.2129,167.2,167.18,6.17]
[1717280488310,2.213,167.19,167.18,6.17]
[1717280488504,2.213,167.19,167.13,1.53633115]
[1717280488720,2.213,167.19,167.17,6.17]
[1717280489696,2.213,167.19,167.13,1.53633115]
[1717280489897,2.213,167.19,167.17,6.17]
[1717280498254,2.213,167.19,167.16,6.17]
[1717280500048,2.213,167.19,167.13,0.17]
[1717280500253,2.2131,167.19,167.16,6.17]
[1717280506740,2.2131,167.19,167.13,0.17]
[1717280506939,2.2131,167.19,167.15,6.17]
[1717280510464,2.2131,167.18,167.14,6.17]
[1717280513056,2.2131,167.19,167.14,6.17]
[1717280513257,10.5958,167.2,167.14,6.17]
[1717280513974,4.4258,167.2,167.14,6.17]
[1717280514149,10.5958,167.2,167.14,6.17]
[1717280514478,2.2131,167.18,167.14,6.17]
[1717280516565,2.2132,167.18,167.14,6.17]
[1717280517879,2.2133,167.17,167.14,6.17]
[1717280518876,2.2132,167.18,167.14,6.17]
[1717280525276,2.2131,167.19,167.14,6.17]
[1717280525483,2.2132,167.18,167.14,6.17]
[1717280531782,6.6376,167.23,167.15,0.17]
[1717280531952,2.2129,167.2,167.17,6.17]
[1717280532159,2.2129,167.2,167.16,6.17]
[1717280532651,2.2129,167.2,167.12,30.9333]
[1717280532857,2.2129,167.2,167.13,0.34]
[1717280533360,2.213,167.19,167.13,0.34]
[1717280534186,2.2131,167.18,167.13,0.34]
[1717280534480,2.2131,167.18,167.13,6.9318]
[1717280534691,2.2131,167.18,167.14,6.5918]
[1717280534983,2.2131,167.18,167.15,0.17]
[1717280535886,2.2131,167.18,167.16,6.17]
[1717280536783,2.2131,167.18,167.15,0.17]
[1717280536976,2.2131,167.18,167.15,6.34]
[1717280537785,2.2131,167.18,167.15,0.17]
[1717280537958,2.2131,167.18,167.15,6.34]
[1717280542167,2.2131,167.18,167.15,0.17]
[1717280542365,2.2131,167.18,167.14,6.17]
[1717280542568,2.2133,167.17,167.14,6.17]
[1717280542773,2.2133,167.17,167.13,0.17]
[1717280542987,2.2133,167.17,167.14,6.17]
[1717280546299,2.2133,167.17,167.13,0.17]
[1717280546482,2.2133,167.17,167.14,6.17]
[1717280548489,2.2132,167.18,167.14,6.17]
[1717280550007,2.2133,167.17,167.14,6.17]
[1717280550801,2.2132,167.18,167.14,6.17]
[1717280551685,2.2133,167.17,167.14,6.17]
[1717280553304,2.2133,167.17,167.13,0.17]
[1717280553511,2.2133,167.17,167.14,6.17]
[1717280555407,2.2132,167.18,167.14,6.17]
[1717280557104,2.2132,167.18,167.12,0.17]
[1717280557297,2.2132,167.18,167.16,6.17]
[1717280557706,2.2131,167.19,167.16,6.17]
[1717280557911,2.2129,167.2,167.17,6.17]
[1717280558506,2.213,167.19,167.17,6.17]
[1717280560707,2.2131,167.18,167.12,15.48730716]
[1717280560915,2.2131,167.18,167.17,6.17]
[1717280561711,2.2131,167.18,167.16,6.17]
[1717280566910,2.2133,167.17,167.12,0.34]
[1717280567120,2.2133,167.17,167.16,6.17]
[1717280568131,2.2132,167.18,167.13,6.4587]
[1717280568420,2.2132,167.18,167.16,6.17]
[1717280573323,2.2133,167.17,167.16,6.17]
[1717280573830,2.2132,167.18,167.16,6.17]
[1717280574920,2.2133,167.17,167.15,6.17]
[1717280577741,2.2133,167.17,167.14,0.17]
[1717280577921,2.2133,167.17,167.15,6.17]
[1717280579533,2.2132,167.18,167.15,6.17]
[1717280580815,2.2132,167.18,167.16,6.17]
[1717280581353,17.2335,167.22,167.16,6.17]
[1717280581519,2.2128,167.21,167.18,6.17]
[1717280581843,13.2755,167.23,167.18,6.17]
[1717280581844,2.2129,167.2,167.18,6.17]
[1717280582514,2.2129,167.2,167.17,6.34]
[1717280583622,2.2128,167.21,167.17,6.34]
[1717280583826,2.2128,167.21,167.17,6.17]
[1717280586739,2.2129,167.2,167.17,6.17]
[1717280588642,2.2129,167.2,167.13,44.90751282]
[1717280588856,2.2129,167.2,167.17,6.17]
[1717280589953,2.2128,167.21,167.17,6.17]
[1717280591048,2.2129,167.2,167.17,6.17]
[1717280592331,2.2127,167.21,167.17,6.17]
[1717280594766,2.2129,167.2,167.17,6.17]
[1717280601178,2.2129,167.2,167.14,0.17]
[1717280601477,2.2129,167.2,167.16,6.17]
[1717280603079,2.2129,167.2,167.14,0.17]
[1717280603277,2.2129,167.2,167.16,6.17]
[1717280605881,2.2129,167.2,167.14,0.34]
[1717280606178,2.2128,167.21,167.16,6.17]
[1717280607175,2.2128,167.21,167.14,0.34]
[1717280607381,2.2128,167.21,167.16,6.17]
[1717280607580,2.2128,167.21,167.17,6.17]
[1717280610380,2.2128,167.21,167.16,6.17]
[1717280617376,2.2128,167.21,167.17,6.34]
[1717280620811,2.2129,167.2,167.17,6.34]
[1717280621982,2.2129,167.2,167.16,6.17]
[1717280624301,2.2128,167.21,167.16,6.17]
[1717280625581,2.2129,167.2,167.16,6.17]
[1717280626194,2.213,167.19,167.15,0.17]
[1717280627094,2.2131,167.18,167.15,0.17]
[1717280627996,2.2131,167.18,167.15,6.34]
[1717280628307,2.2131,167.19,167.15,6.34]
[1717280629681,2.2131,167.18,167.15,6.34]
[1717280629883,2.2131,167.18,167.15,6.17]
[1717280630088,2.2131,167.19,167.16,6.17]
[1717280630496,2.2131,167.19,167.13,8.98331304]
[1717280630807,2.2131,167.19,167.14,0.17]
[1717280632604,2.2131,167.19,167.15,6.17]
[1717280637220,11.0641,167.21,167.17,6.17]
[1717280637221,2.213,167.2,167.17,6.17]
[1717280639530,2.213,167.19,167.14,9.15331304]
[1717280640000,2.2129,167.2,167.14,9.15331304]
[1717280640324,2.2128,167.21,167.15,6.7085]
[1717280640625,2.2129,167.2,167.18,6.17]
[1717280641715,2.2128,167.21,167.18,6.17]
[1717280642215,2.2127,167.22,167.18,6.17]
[1717280642413,4.425,167.23,167.19,6.17]
[1717280642739,2.2126,167.22,167.2,6.17]
[1717280642905,2.2126,167.22,167.18,0.17]
[1717280643105,2.2126,167.22,167.2,6.17]
[1717280643603,8.8492,167.25,167.2,6.17]
[1717280643822,8.8492,167.25,167.21,6.17]
[1717280643823,4.4245,167.25,167.21,6.17]
[1717280644027,2.2124,167.24,167.21,6.17]
[1717280644533,2.2125,167.23,167.18,0.17]
[1717280644837,2.2125,167.23,167.21,6.17]
[1717280645004,2.2125,167.23,167.17,0.34]
[1717280645202,2.2125,167.23,167.21,6.17]
[1717280645804,2.2124,167.24,167.21,6.17]
[1717280646730,2.2125,167.23,167.17,0.34]
[1717280646931,2.2125,167.23,167.21,6.17]
[1717280647626,2.2124,167.24,167.21,6.17]
[1717280648212,2.2124,167.24,167.17,0.34]
[1717280648406,2.2124,167.24,167.21,6.17]
[1717280653224,2.2124,167.24,167.22,6.17]
[1717280653419,2.2124,167.24,167.17,0.34]
[1717280653728,2.2124,167.24,167.22,6.17]
[1717280655037,2.2124,167.24,167.21,6.17]
[1717280662220,6.5491,167.27,167.16,35.93]
[1717280662420,2.2127,167.22,167.17,6.17]
[1717280662635,2.2127,167.21,167.17,6.17]
[1717280663433,2.2127,167.22,167.17,6.17]
[1717280663634,11.0626,167.23,167.13,59.94580013]
[1717280663835,2.2128,167.21,167.16,6.17]
[1717280665645,6.17,167.21,167.13,8.98110013]
[1717280665944,2.2131,167.18,167.14,6.17]
[1717280666123,2.2131,167.19,167.14,6.17]
[1717280669752,2.2131,167.19,167.14,5.83781926]
[1717280671134,2.213,167.2,167.14,5.83781926]
[1717280672359,2.213,167.19,167.14,5.83781926]
[1717280672846,2.213,167.19,167.15,6.17]
[1717280673259,10.5956,167.21,167.13,0.17]
[1717280673260,2.2129,167.2,167.16,6.17]
[1717280674060,2.2129,167.2,167.17,6.17]
[1717280676256,2.213,167.19,167.17,6.17]
[1717280677367,6.5491,167.22,167.17,6.17]
[1717280677663,2.2129,167.2,167.17,6.17]
[1717280679659,2.213,167.19,167.17,6.17]
[1717280682263,2.213,167.19,167.13,9.15291036]
[1717280682443,2.213,167.19,167.14,6.4703]
[1717280682649,2.2131,167.18,167.15,0.17]
[1717280683363,2.2131,167.19,167.15,0.17]
[1717280684049,2.2131,167.18,167.15,0.17]
[1717280685160,2.2131,167.19,167.15,0.17]
[1717280685766,2.213,167.19,167.15,0.17]
[1717280687347,2.2129,167.2,167.15,0.17]
[1717280687663,2.2129,167.2,167.14,0.34]
[1717280688459,2.213,167.19,167.14,0.34]
[1717280689159,2.213,167.19,167.14,6.6403]
[1717280689366,2.2131,167.18,167.14,6.6403]
[1717280689561,2.2131,167.18,167.17,6.17]
[1717280689762,2.2131,167.18,167.16,6.17]
[1717280690969,2.2131,167.19,167.16,6.17]
[1717280692972,2.2131,167.19,167.14,6.6403]
[1717280693271,2.2131,167.19,167.16,6.17]
[1717280700058,2.2131,167.19,167.14,6.6403]
[1717280700360,2.2131,167.19,167.16,6.17]
[1717280701276,2.2131,167.19,167.14,0.17]
[1717280701571,2.2131,167.19,167.16,6.17]
[1717280702059,2.2132,167.18,167.14,6.17]
[1717280703573,2.2133,167.17,167.14,6.17]
[1717280705380,2.2132,167.18,167.14,6.17]
[1717280705681,2.2132,167.18,167.13,8.98325476]
[1717280705856,2.2132,167.18,167.14,6.17]
[1717280709384,2.2128,167.21,167.17,6.17]
[1717280709679,2.2128,167.21,167.18,6.17]
[1717280711090,2.2129,167.2,167.15,0.17]
[1717280711267,2.2128,167.21,167.17,6.17]
[1717280713286,2.2128,167.21,167.18,6.17]
[1717280713883,2.2129,167.2,167.18,6.17]
[1717280714791,2.213,167.19,167.18,6.17]
[1717280714975,2.2129,167.2,167.17,6.17]
[1717280717087,2.2129,167.2,167.15,0.17]
[1717280717289,2.2129,167.2,167.18,6.17]
[1717280717590,2.2124,167.24,167.19,6.17]
[1717280717774,13.2721,167.27,167.21,6.17]
[1717280717775,2.2123,167.25,167.21,6.17]
[1717280718264,4.4235,167.29,167.24,6.17]
[1717280718468,2.2122,167.25,167.2,0.17]
[1717280718667,6.17,167.27,167.2,0.17]
[1717280718889,2.2126,167.23,167.2,0.17]
[1717280719074,2.2126,167.23,167.21,6.17]
[1717280719280,2.2124,167.24,167.16,35.91]
[1717280719479,2.2124,167.24,167.17,0.34]
[1717280719912,6.3451,167.28,167.17,0.34]
[1717280720077,2.2128,167.21,167.14,67.62588042]
[1717280720270,2.2128,167.21,167.18,6.17]
[1717280720466,2.2127,167.22,167.18,6.17]
[1717280720772,2.2127,167.22,167.19,6.17]
[1717280720987,4.424,167.27,167.21,6.17]
[1717280721179,4.424,167.27,167.22,6.17]
[1717280721373,2.2124,167.24,167.22,6.17]
[1717280721874,21.8286,167.28,167.2,6.17]
[1717280721875,2.2122,167.26,167.2,6.17]
[1717280722171,2.2122,167.26,167.23,6.17]
[1717280722370,6.3451,167.28,167.23,6.17]
[1717280722371,2.212,167.27,167.23,6.17]
[1717280723009,2.2121,167.26,167.23,6.17]
[1717280723368,2.212,167.27,167.21,0.17]
[1717280723586,2.2121,167.26,167.23,6.17]
[1717280723795,2.2121,167.26,167.21,0.17]
[1717280723979,2.2121,167.26,167.22,6.17]
[1717280724699,2.2121,167.26,167.21,0.17]
[1717280724879,2.212,167.27,167.21,0.17]
[1717280725082,2.212,167.27,167.21,0.34]
[1717280725281,2.2121,167.26,167.21,0.34]
[1717280725895,2.2121,167.26,167.23,6.17]
[1717280726688,2.212,167.27,167.23,6.17]
[1717280728880,2.212,167.27,167.21,0.34]
[1717280729081,2.212,167.27,167.23,6.17]
[1717280729703,2.212,167.27,167.22,6.17]
[1717280729905,2.212,167.27,167.23,0.17]
[1717280730405,2.2121,167.26,167.23,0.17]
[1717280730608,2.2121,167.26,167.22,6.17]
[1717280731587,2.212,167.27,167.22,6.17]
[1717280732198,2.2118,167.28,167.22,6.17]
[1717280732393,2.2118,167.28,167.23,0.17]
[1717280732706,2.212,167.27,167.23,0.17]
[1717280732885,2.212,167.27,167.23,6.34]
[1717280733085,2.2119,167.28,167.24,6.17]
[1717280734801,2.2119,167.28,167.23,6.34]
[1717280735010,2.212,167.27,167.23,6.34]
[1717280739717,2.212,167.27,167.23,0.17]
[1717280739901,2.212,167.27,167.23,6.34]
[1717280745394,2.2119,167.28,167.24,6.17]
[1717280746321,2.2121,167.27,167.24,6.17]
[1717280750422,2.2119,167.28,167.25,0.17]
[1717280754608,2.2119,167.27,167.25,0.17]
[1717280756431,2.2119,167.28,167.25,0.17]
[1717280758443,2.2119,167.28,167.23,6.17]
[1717280758612,2.2119,167.27,167.23,6.17]
[1717280758811,2.2119,167.27,167.22,6.17]
[1717280759307,10.5934,167.29,167.22,6.17]
[1717280759512,2.2119,167.28,167.23,6.17]
[1717280759816,2.2119,167.28,167.24,6.34]
[1717280760715,2.212,167.27,167.24,6.34]
[1717280761028,2.212,167.27,167.19,35.91]
[1717280761234,11.0593,167.28,167.2,0.34]
[1717280761442,2.2121,167.26,167.21,6.17]
[1717280761730,2.2121,167.26,167.22,0.17]
[1717280764626,2.2121,167.26,167.21,6.17]
[1717280764936,2.2121,167.26,167.2,6.51]
[1717280765435,2.2122,167.25,167.2,6.51]
[1717280766238,2.2122,167.25,167.2,6.34]
[1717280767844,2.2123,167.24,167.2,6.34]
[1717280768033,2.2123,167.25,167.2,0.17]
[1717280768523,2.2123,167.25,167.19,0.17]
[1717280768723,8.3823,167.25,167.19,6.34]
[1717280769025,2.2124,167.24,167.19,6.34]
[1717280769448,2.2125,167.23,167.19,0.17]
[1717280769818,8.3824,167.24,167.18,6.34]
[1717280770539,2.2125,167.23,167.18,0.17]
[1717280770745,2.2125,167.23,167.18,6.17]
[1717280770947,2.2125,167.23,167.19,0.17]
[1717280771120,8.3824,167.24,167.19,0.17]
[1717280771827,2.2125,167.23,167.19,0.17]
[1717280772874,2.2124,167.24,167.19,6.34]